Cogmind - Beta 17.1 @@@ ROGUE MODE // 2026.09.02 @ 02:58:18 Player: Kite Result: Escaped! Performance ------------- Evolutions (9) 4500 Regions Visited (26) 5200 Robots Destroyed (406) 2030 Value Destroyed (20303) 20303 Prototype IDs (42) 840 Alien Tech Used (8) 1600 Bonus (23352) 23352 TOTAL SCORE: 57825 Bonus ------- Triggered High Security 500 High Alert Combat Kills 4882 Follower Combat Kills 5315 Registered with UFD 300 Met Optimus in HQ 500 Met Zhirov 300 Met R17 at Cetus 500 Found Hidden Lab 3000 Met R17 at Research 2000 Scanned by Researcher 500 Acquired SGEMP 2000 Delivered SGEMP 2000 Win 3000 Friendly Fire -1445 Cogmind --------- Core Integrity 1026/1600 Matter 300/300 Energy 47/100 System Corruption 20% Temperature Cool (0) Movement Core (50) Location To Epsilon Eridani Parts ------- > --- POWER (3) -------- (None) > --- PROPULSION (8) --- (None) > --- UTILITY (10) ----- (None) > --- WEAPON (4) ------- (None) > --- INVENTORY (5) ---- Advanced Heavy Siege Treads Fusion Bomb Launcher Core Stripper Peak State ------------ > --- POWER ------------ Micro Antimatter Reactor Light Quantum Reactor Improved Quantum Reactor > --- PROPULSION ------- Armored Heavy Treads Biometal Heavy Treads Biometal Heavy Treads Advanced Heavy Siege Treads > --- UTILITY ---------- Vampiric Humpback Advanced Signal Interpreter Experimental Terrain Scanner Surveybot 24 Chip Experimental Core Analyzer Heavy Regenerative Plating > --- WEAPON ----------- Ionic Axe Sigix Broadsword Plasma Lance > --- INVENTORY -------- Light Antimatter Reactor Light Antimatter Reactor Light Antimatter Reactor Micro Antimatter Reactor Matter Drive Advanced Medium Treads Biometal Medium Treads Biometal Medium Treads Armored Heavy Treads Energy Well Advanced Matter Compressor Advanced Sensor Array Advanced Sensor Array Improved Transmission Jammer Improved Hardlight Generator Deep Network Scanner Advanced System Shield Improved Component Analysis Suite Improved Dynamic Insulation System Long-range Tractor Beam Core Regenerator Core Reset Matrix Subatomic Replicator Terrabomb Enhanced Gamma Bomb Array Fusion Bomb Launcher Fusion Bomb Launcher Core Stripper Plasma Lance Plasma Lance SGEMP Prototype [Rating: 224] Favorites ----------- Power Quantum Reactor Engine Heavy Ion Engine Power Core Neutrino Core Reactor Quantum Reactor Propulsion Centrium Heavy Treads Treads Centrium Heavy Treads Leg Myomer Leg Wheel Wheel Utility Vampiric Humpback Device Advanced Sensor Array Storage Vampiric Humpback Processor Advanced Melee Analysis Suite Hackware Improved Hacking Suite Protection Centrium Medium Armor Plating Weapon KE Penetrator Energy Gun Small Laser Energy Cannon Warp Cannon Ballistic Gun KE Penetrator Launcher Neutron Missile Launcher Special Weapon CPS Tube Impact Weapon Hammer Slashing Weapon Phasing Sabre Piercing Weapon Plasma Lance Special Melee Weapon Advanced Datajack Build | -11 -10 -9 -9 -9 -9 -6 -6 -6 -6 -5 -5 -5 -5 -5 -5 -4 -4 -4 -4 -4 -4 -3 -3 -2 -2 -1 ------- Run | Yrd Mat Mat Sto Rec Scr Fac Ext Cet Arc Fac Was Fac Upp Upp Zhi Pro Fac Was Fac Arm Lab Res Qua Res Tes Acc Slots Evolved 18 | . . 2 . . . 6 . . . 2 . . . . . . 2 . . . . 2 . 2 . 2 Power 2 | . . . . . . . . . . . . . . . . . . . . . . 2 . . . . Propulsion 6 | . . 1 . . . 2 . . . 2 . . . . . . 1 . . . . . . . . . Utility 8 | . . 1 . . . 2 . . . . . . . . . . 1 . . . . . . 2 . 2 Weapon 2 | . . . . . . 2 . . . . . . . . . . . . . . . . . . . . Parts Attached 299 | 5 12 17 18 2 19 9 17 15 20 10 . 4 2 4 2 . 4 10 15 7 3 22 19 12 18 33 Power 41 | 1 2 3 1 . 1 . 1 1 3 . . . . . . . . 1 . 1 . 7 5 2 7 5 Engine 9 | 1 2 3 1 . 1 . 1 . . . . . . . . . . . . . . . . . . . Core 3 | . . . . . . . . . 2 . . . . . . . . 1 . . . . . . . . Reactor 29 | . . . . . . . . 1 1 . . . . . . . . . . 1 . 7 5 2 7 5 Propulsion 95 | 2 3 4 8 1 10 2 9 3 7 2 . . . . . . 1 6 . 2 . 4 4 4 5 18 Treads 74 | 2 . 3 8 1 10 2 9 3 7 2 . . . . . . 1 6 . 2 . 4 4 4 5 1 Leg 12 | . . . . . . . . . . . . . . . . . . . . . . . . . . 12 Wheel 9 | . 3 1 . . . . . . . . . . . . . . . . . . . . . . . 5 Hover . | . . . . . . . . . . . . . . . . . . . . . . . . . . . Flight . | . . . . . . . . . . . . . . . . . . . . . . . . . . . Utility 90 | . 3 6 3 1 5 3 3 8 8 3 . 3 1 4 . . 1 1 8 3 . 7 6 3 3 7 Device 36 | . . 1 . . 1 2 2 . 2 1 . 1 1 2 . . 1 1 4 3 . 4 5 . 1 4 Storage 7 | . 2 1 . . 1 . . . 1 . . 1 . . . . . . . . . . . 1 . . Processor 11 | . . . . . . . 1 2 . . . . . 1 . . . . . . . 3 1 1 2 . Hackware 13 | . . 1 . 1 . . . . 2 2 . 1 . . . . . . 4 . . . . . . 2 Protection 23 | . 1 3 3 . 3 1 . 6 3 . . . . 1 . . . . . . . . . 1 . 1 Artifact . | . . . . . . . . . . . . . . . . . . . . . . . . . . . Weapon 73 | 2 4 4 6 . 3 4 4 3 2 5 . 1 1 . 2 . 2 2 7 1 3 4 4 3 3 3 Energy Gun 5 | 2 3 . . . . . . . . . . . . . . . . . . . . . . . . . Energy Cannon 2 | . . . . . . 1 . . . . . . . . . . . . . . 1 . . . . . Ballistic Gun 24 | . 1 4 3 . . . . 1 . 4 . 1 1 . . . 1 2 5 1 . . . . . . Ballistic Cannon . | . . . . . . . . . . . . . . . . . . . . . . . . . . . Launcher 10 | . . . 1 . . 1 . . . . . . . . . . 1 . 2 . . 1 . 1 2 1 Special Weapon 3 | . . . . . . . . 1 . . . . . . . . . . . . 1 1 . . . . Impact Weapon 9 | . . . 2 . 1 1 . . 1 . . . . . 1 . . . . . . . . 1 . 2 Slashing Weapon 13 | . . . . . 2 . 4 1 1 . . . . . 1 . . . . . 1 1 1 1 . . Piercing Weapon 5 | . . . . . . . . . . . . . . . . . . . . . . 1 3 . 1 . Special Melee Weapon 2 | . . . . . . 1 . . . 1 . . . . . . . . . . . . . . . . Unidentified Prototypes 24 | . . 2 1 . . . . 3 . . . 2 . . 1 . . . 1 1 3 3 1 2 2 2 Corrupted Parts 3 | . . . . 1 . . . . 1 . . . . . . . . . . . . 1 . . . . System Corruption 14 | . . . . 2 . . . . 11 . . . . . . . . . . . . 1 . . . . Parts Lost 110 | . 4 4 4 . . . 4 14 4 . . . . 1 . . 4 . 3 . . 1 11 5 10 41 Power 21 | . 1 2 . . . . . . 1 . . . . . . . . . . . . 1 4 1 2 9 Propulsion 47 | . 1 1 3 . . . 2 7 1 . . . . . . . 1 . 1 . . . 3 3 5 19 Utility 22 | . . 1 1 . . . 1 4 . . . . . 1 . . . . . . . . 1 . 1 12 Weapon 20 | . 2 . . . . . 1 3 2 . . . . . . . 3 . 2 . . . 3 1 2 1 Highest Loss Streak 16 | . 2 2 3 . . . 3 8 2 . . . . 1 . . 3 . 3 . . 1 6 3 4 16 To Critical Strikes 6 | . . . . . . . . 2 . . . . . . . . . . . . . . . . 1 3 Average Backups 26 | . 13 24 24 24 23 22 23 20 26 33 33 33 32 32 33 33 31 30 29 29 29 30 29 29 29 24 Power 1 | . 2 1 . 1 . . 1 2 1 1 1 1 1 1 1 1 1 1 1 1 1 . . 2 2 3 Propulsion 5 | . 5 11 10 11 8 5 6 4 6 5 6 5 4 4 4 4 3 5 5 5 5 3 2 2 4 5 Utility 12 | . 3 6 8 8 7 10 10 10 14 20 19 18 17 16 16 17 16 16 13 13 15 17 16 12 11 7 Weapon 5 | . 1 4 4 3 4 4 3 3 3 5 5 5 8 8 8 8 7 5 6 8 5 5 5 5 5 4 Tool/Special . | . . . . . . . . . . . . . . . . . . . . . . . . . . . Unused Backups 80 | 1 5 7 5 . 6 2 8 5 3 3 . 1 . 1 1 . . 6 3 5 1 4 1 1 3 8 Power 6 | . . 2 . . . . . 3 . . . . . . . . . . 1 . . . . . . . Propulsion 10 | . 1 2 2 . 1 . 1 . . . . . . . . . . . 1 1 . . . . . 1 Utility 45 | . 2 1 2 . 3 2 6 2 3 3 . 1 . . 1 . . 5 1 3 1 2 . 1 1 5 Weapon 12 | 1 1 2 1 . 1 . 1 . . . . . . 1 . . . . . . . 2 . . 2 . Tool/Special 7 | . 1 . . . 1 . . . . . . . . . . . . 1 . 1 . . 1 . . 2 Average Slot Usage (%) 83 | . 87 99 99 100 90 89 92 90 77 76 76 76 76 75 75 76 79 76 72 75 74 79 73 70 70 83 Engine 3 | . 13 10 11 11 10 6 6 1 . . . . . . . . . . . . . . . . . . Reactor 5 | . . . . . . . . 4 4 5 5 5 5 5 5 5 5 4 5 5 5 13 11 12 12 10 Treads 24 | . 9 23 32 33 32 32 33 24 22 23 23 23 23 23 23 23 27 25 21 23 26 23 19 18 18 9 Wheel 1 | . 18 9 . . . . . . . . . . . . . . . . . . . . . . . 5 Device 5 | . . 1 . . 3 11 11 . 1 3 3 3 4 5 4 4 9 7 6 7 5 5 5 7 4 13 Storage 6 | . 11 11 11 11 10 6 6 6 6 5 5 5 5 5 5 5 5 5 5 5 5 4 4 4 4 4 Processor 4 | . . . . . . . 1 16 8 5 5 5 5 8 11 11 10 10 2 . . 3 11 8 11 8 Hackware 3 | . . 9 11 11 8 . . . 1 4 5 4 . . . . . . 8 10 10 4 . . . 2 Protection 4 | . 4 10 10 10 4 6 6 7 10 1 1 1 5 1 . . . 2 1 2 2 3 1 3 3 2 Energy Gun 1 | . 19 3 . . . . . . . . . . . . . . . . . . . . . . . . Ballistic Gun 6 | . 8 18 13 . . . . . . 20 19 21 23 23 . 17 18 11 20 20 1 . . . . . Impact Weapon 4 | . . . 8 22 16 12 13 . 5 1 . . . . 4 1 . . . . 4 1 . . . 1 Slashing Weapon 5 | . . . . . 4 6 11 25 14 1 2 1 . . 16 4 . 6 . . 14 9 6 6 7 1 Piercing Weapon 1 | . . . . . . . . . . . . . . . . . . . . . . 1 9 5 4 11 Peak Build Rating 224 | 5 9 18 20 21 37 54 79 100 109 136 136 137 137 140 129 136 145 142 148 154 156 181 197 219 224 215 Average Rating 103 | 3 7 14 17 17 25 50 60 93 95 131 132 132 136 133 123 131 132 130 139 150 137 170 170 205 202 181 On Entrance 103 | . 5 9 15 17 21 37 53 77 98 90 136 130 135 137 132 124 133 115 140 148 150 144 173 192 193 201 Avg Prop Armor Cover (%) 12 | . 13 . . . 29 . . . . . . . . . . . . . . . . . 5 . . 10 Naked Turns 57 | . . . . . 56 . . . . . . . . . . . . . . . . . . . . 1 Heaviest Build 308 | 6 105 95 98 96 106 131 138 129 247 253 248 253 249 249 234 242 249 246 252 256 256 307 269 288 290 308 Greatest Support 310 | 40 40 60 60 60 65 106 144 154 183 263 263 263 263 263 263 263 286 300 300 300 284 292 305 310 290 280 Greatest Overweight (x) 25 | . 8 4 1 1 1 1 1 1 1 1 . . . . . . . 1 . . . 1 1 1 1 25 Average Overweight (x) . | . 2 1 1 1 . . . . . . . . . . . . . . . . . . . . . 3 Largest Inventory Capacity 35 | 5 25 25 25 25 25 25 25 25 35 35 35 35 35 35 35 35 35 35 35 35 35 35 35 35 35 35 Average Capacity 30 | 5 20 25 25 25 24 25 25 25 30 35 35 35 35 35 35 35 35 35 35 35 35 35 35 35 35 34 Most Carried 35 | 2 25 25 25 25 25 25 25 25 35 35 35 35 35 35 35 35 35 35 35 35 35 35 35 35 35 35 Average Carried 28 | . 14 24 24 24 23 24 24 23 29 34 35 34 34 34 34 35 33 34 34 34 34 34 33 32 32 25 Final Capacity 35 | 5 25 25 25 25 25 25 25 25 35 35 35 35 35 35 35 35 35 35 35 35 35 35 35 35 35 5 Final Carried 35 | 1 25 25 24 25 25 25 25 24 35 35 35 35 34 35 35 35 33 35 35 34 35 35 35 35 29 5 Scrap Suit Usage (%) 11 | . . . . . 31 88 72 7 . . . . . . . . . . . . . . . . . 8 Parts Cannibalized 22 | . . . . . . 1 20 . . . . . . . . . . . . . . . . . . 1 Class Distribution -------------------- 15% | Scavenger-Mutant 13% | Hauler-Mutant 12% | Commander-Mutant 11% | Mutant 8% | Scavenger-Gladiator 7% | Hauler-Gladiator 7% | Hauler-Tank 6% | Scavenger-Tank 5% | Hauler-Skirmisher 4% | Gladiator 3% | Hauler-Assassin Dominant Class ---------------- Scavenger-Mutant | -10/Materials Mutant | -9/Materials Mutant | -9/Storage Commander-Mutant | -9/Recycling Commander-Mutant | -9/Scraptown Mutant | -6/Factory Gladiator | -6/Extension Scavenger-Gladiator | -6/Cetus Scavenger-Gladiator | -6/Archives Scavenger-Tank | -5/Factory Scavenger-Tank | -5/Waste Scavenger-Tank | -5/Factory Hauler-Tank | -5/Upper Caves Hauler-Skirmisher | -5/Upper Caves Hauler-Gladiator | -5/Zhirov Hauler-Skirmisher | -4/Proximity Caves Hauler-Skirmisher | -4/Factory Hauler-Gladiator | -4/Waste Hauler-Tank | -4/Factory Hauler-Tank | -4/Armory Scavenger-Mutant | -4/Lab Hauler-Mutant | -3/Research Hauler-Gladiator | -3/Quarantine Hauler-Mutant | -2/Research Hauler-Mutant | -2/Testing Scavenger-Mutant | -1/Access Resources | -11 -10 -9 -9 -9 -9 -6 -6 -6 -6 -5 -5 -5 -5 -5 -5 -4 -4 -4 -4 -4 -4 -3 -3 -2 -2 -1 ----------- Run | Yrd Mat Mat Sto Rec Scr Fac Ext Cet Arc Fac Was Fac Upp Upp Zhi Pro Fac Was Fac Arm Lab Res Qua Res Tes Acc Matter Collected 12840 | 132 301 285 773 10 480 . 581 293 297 572 . 1036 237 173 . 240 613 515 1067 619 3 1469 845 128 953 1218 Remotely 512 | . . . . . . . . . . . . . . . . . . . . . . . . . . 512 Salvage Created 22601 | . 628 645 1195 203 . . 1443 466 644 928 . 1266 133 258 . 248 1174 459 1171 338 . 1807 1385 1855 4067 2288 Parts 999 | . 58 36 72 3 . . 33 22 40 44 . 60 . 6 . 9 45 11 45 16 . 78 66 99 173 83 Haulers Intercepted 22 | . 1 2 5 . . . 5 . . 1 . 1 . . . . . . 3 . . 3 . . 1 . Recyclers Shooed 5 | . 2 . . . . . . . . . . . . 1 . . 2 . . . . . . . . . Parts Field Recycled . | . . . . . . . . . . . . . . . . . . . . . . . . . . . Retrieved Matter . | . . . . . . . . . . . . . . . . . . . . . . . . . . . Parts Self-Destructed 43 | . . . . . . . . . . . . . 20 14 . 9 . . . . . . . . . . Prevented . | . . . . . . . . . . . . . . . . . . . . . . . . . . . Parts Restored . | . . . . . . . . . . . . . . . . . . . . . . . . . . . Kills | -11 -10 -9 -9 -9 -9 -6 -6 -6 -6 -5 -5 -5 -5 -5 -5 -4 -4 -4 -4 -4 -4 -3 -3 -2 -2 -1 ------- Run | Yrd Mat Mat Sto Rec Scr Fac Ext Cet Arc Fac Was Fac Upp Upp Zhi Pro Fac Was Fac Arm Lab Res Qua Res Tes Acc Combat Hostiles Destroyed 286 | . 14 11 18 . . . 13 6 4 11 . 15 2 3 . 3 21 . 10 4 . 27 23 26 41 34 Melee 92 | . . . 4 . . . 11 6 4 . . . . . . . . . . . . 1 19 22 12 13 Guns 87 | . 14 11 7 . . . . . . 11 . 9 2 3 . 3 17 . 6 4 . . . . . . Cannons 10 | . . . . . . . . . . . . . . . . . . . . . . 10 . . . . AOE 64 | . . . 3 . . . . . . . . 6 . . . . 1 . 4 . . 12 4 3 13 18 Classes Destroyed 26 | . 7 2 2 . . . 1 . . 3 . 1 . . . . . 1 . . . 5 . 2 2 . Worker 30 | . 6 1 7 . . . 2 . . 3 . 1 . . . . . . . . . 1 . . 4 5 Builder 22 | . 1 . 1 . . . 1 . . 2 . 7 . . . . 1 . 2 . . . . 1 5 1 Tunneler 2 | . . . . . . . . . . 1 . 1 . . . . . . . . . . . . . . Hauler 22 | . 1 2 5 . . . 5 . . 1 . 1 . . . . . . 3 . . 3 . . 1 . Recycler 12 | . 1 . 2 3 . . 1 . . . . 2 . . . . . . 1 . . . . 1 1 . Carrier 1 | . . . . . . . . . . . . . . . . . . . . . . 1 . . . . Mechanic 4 | . . . 2 . . . . . . . . . . . . . 1 . . . . . . . . 1 Operator 13 | . 1 . 1 . . . 1 . 9 . . . . . . . . . . . . . . . . 1 Watcher 9 | . . . 2 . . . 1 1 . . . . . . . . . . 1 . . . 1 1 2 . Swarmer 41 | . 8 . 6 . . . 2 . . . . 1 . . . . 9 . . . . 4 3 4 . 4 Saboteur 2 | . . . . . . . . . . . . . . . . . . . . . . . . 1 1 . Grunt 117 | . 6 5 6 . . . 5 . . 8 . 13 2 2 . 3 7 . 3 2 . 6 6 6 19 18 Brawler 3 | . . 1 . . . . 1 . . . . . . . . . 1 . . . . . . . . . Duelist 5 | . . . . . . . . . . . . 1 . 1 . . 1 . . . . 1 . . 1 . Researcher 1 | . . . . . . . . . . . . . . . . . . . . . . . . . 1 . Sentry 28 | . . 5 6 . . . 3 . 4 . . . . . . . 1 . 2 . . 1 3 2 1 . Demolisher 2 | . . . . . . . . . . . . . . . . . . . . 1 . 1 . . . . Specialist 1 | . . . . . . . . . . . . . . . . . . . . . . 1 . . . . Hunter 27 | . . . . . . . . . . 1 . . . . . . 2 . 1 . . 2 2 . 11 8 Programmer 41 | . . . . . . . . . . 2 . . . . . . . . 4 1 . 4 9 12 5 4 Heavy 1 | . . . . . . . . . . . . . . . . . . . . . . . . 1 . . Behemoth 2 | . . . . . . . 2 . . . . . . . . . . . . . . . . . . . Cetus Guard 6 | . . . . . . . . 6 . . . . . . . . . . . . . . . . . . Striker 6 | . . . . . . . . . . . . . . . . . . . . . . 4 . . 2 . Executioner 3 | . . . . . . . . . . . . . . . . . . . . . . 3 . . . . Alpha 7 1 | . . . . . . . . . . . . . . . . . . . . . . . . . 1 . Scrapoid 1 | . . . . . . . . . . . . . . . . . . . . . . 1 . . . . Packrat 1 | . . . . . . . . . . . . . . 1 . . . . . . . . . . . . Surgeon 1 | . . . . . . . . . . . . . . . . . . . . 1 . . . . . . Martyr 2 | . . . . . . . . . . . . . . . . . . 2 . . . . . . . . Best Kill Streak 32 | . 3 4 6 1 . . 3 4 4 6 . 12 2 3 . 3 8 . 3 3 . 9 4 5 32 14 Combat Bots Only 22 | . 3 4 5 . . . 3 4 2 3 . 7 2 3 . 3 5 . 3 3 . 9 4 5 22 10 Max Kills in Single Turn 10 | . 1 1 4 1 . . 1 1 1 2 . 10 1 2 . 1 2 1 2 1 . 2 2 3 3 4 Gunslinging 1 | . . . . . . . . . . 1 . 1 . . . . . . 1 . . . . . . . Exploded 6 | . . . 3 . . . . . . . . 6 . . . . 1 . 2 . . 2 2 3 3 4 Melee 1 | . . . 1 . . . 1 1 1 . . . . . . . . . . . . 1 1 1 1 1 Uniques/NPCs Destroyed . | . . . . . . . . . . . . . . . . . . . . . . . . . . . Combat | -11 -10 -9 -9 -9 -9 -6 -6 -6 -6 -5 -5 -5 -5 -5 -5 -4 -4 -4 -4 -4 -4 -3 -3 -2 -2 -1 -------- Run | Yrd Mat Mat Sto Rec Scr Fac Ext Cet Arc Fac Was Fac Upp Upp Zhi Pro Fac Was Fac Arm Lab Res Qua Res Tes Acc Hostile Shots Fired 2760 | . 87 76 144 . 19 . 219 160 26 64 2 34 6 7 . 14 156 . 138 48 . 135 276 282 373 494 Missed 781 | . 19 20 39 . 4 . 76 40 6 19 . 12 1 1 . 1 38 . 33 18 . 39 70 85 112 148 Intercepted 2 | . . . . . . . . . . . . . . . . . . . . . . 2 . . . . Hits 1979 | . 68 56 105 . 15 . 143 120 20 45 2 22 5 6 . 13 118 . 105 30 . 96 206 197 261 346 Melee 32 | . . 1 . . . . 1 . . 2 2 . . . . . 2 . . . . 5 . 1 14 4 Projectile 1947 | . 68 55 105 . 15 . 142 120 20 43 . 22 5 6 . 13 116 . 105 30 . 91 206 196 247 342 AOE 13 | . . . . . 1 . . . . . . 1 . . . . . . . 1 . 2 . . . 8 Critical Strikes 111 | . 1 2 6 . 1 . 3 18 2 6 2 . . . . 1 3 . 9 1 . 2 13 16 16 9 Part Disruptions 11 | . . . . . . . . . . . . . . . . . . . . . . . 3 4 1 3 Actively Blocked 7 | . . . . . . . . . . . . . . . . . . . . . . . 2 4 . 1 Damage Taken 41807 | . 730 745 1184 . 285 . 2003 3355 475 913 115 441 94 154 . 269 2261 . 2779 752 . 2923 4270 4344 6273 7442 Core 3313 | . 111 161 187 . 22 . 228 353 70 72 . 13 18 . . . 173 . 198 56 . 290 352 146 332 531 Absorbed by Shields 3129 | . . . . . . . . . . . . . . . . . . . . 27 . 511 286 609 428 1268 Reduced by Siege Mode 308 | . . . . . . . . . . . . . 5 . . 31 137 . 113 22 . . . . . . Ignored by Resistances 437 | . . . . . . . 220 . . . . . . . . . . . . . . . . . . 217 Regen/Repaired (Parts) 7292 | . . . . . . 4 189 . . . . . . . . . . 1047 1505 180 . . . 1858 1909 600 Core Remaining (%) 46 | 100 55 . . . 7 . . . 23 . . . . . . 75 . . . . 37 . 22 . 39 64 Volleys Fired 546 | . 75 55 51 . . 1 9 6 . 29 6 25 10 7 . 6 54 14 48 19 . 62 9 4 35 21 Largest 4 | . 2 2 2 . . 1 1 1 . 4 4 4 4 4 . 4 4 2 4 4 . 1 1 1 2 2 Hottest 140 | . 100 100 46 . . 81 81 35 . 134 134 134 131 131 . 131 131 63 129 140 . 100 80 52 112 104 Shots Fired 1221 | . 144 110 75 . . 1 9 6 . 116 23 98 37 28 . 24 158 28 161 71 . 63 9 4 34 22 Gun 1059 | . 144 110 70 . . . . 3 . 116 23 98 37 28 . 24 153 28 155 70 . . . . . . Cannon 50 | . . . . . . 1 9 . . . . . . . . . . . . . . 40 . . . . Launcher 107 | . . . 5 . . . . 1 . . . . . . . . 5 . 6 1 . 20 9 4 34 22 Special 5 | . . . . . . . . 2 . . . . . . . . . . . . . 3 . . . . Kinetic 928 | . 53 70 70 . . . . 3 . 116 23 98 37 28 . 24 153 28 155 70 . . . . . . Thermal 161 | . 81 40 . . . . . . . . . . . . . . . . . . . 40 . . . . Explosive 55 | . . . 5 . . . . 1 . . . . . . . . . . 1 1 . 14 7 4 2 20 Electromagnetic 72 | . 10 . . . . 1 9 . . . . . . . . . 5 . 5 . . 6 2 . 32 2 Robot Hit Streak 27 | . 15 9 17 . . . 4 3 . 13 3 11 11 9 . 14 14 9 13 7 . 27 19 5 9 6 Robot Miss Streak 8 | . 4 2 3 . . 1 2 . . 4 2 8 2 1 . 1 3 2 3 4 . 1 4 . 7 2 Penetration Max 1 | . . . . . . . . . . 1 . 1 1 1 . . 1 1 1 . . . . . . . Secondary Targets 16 | . 2 . . . . . . . . 3 . 2 . 1 . 1 3 . 3 1 . . . . . . Max Gunslinging Chain 2 | . 1 . . . . . . . . 2 . 1 . 1 . 1 1 . 1 1 . . . . . . Shots Hit Robots 1256 | . 88 73 81 3 . . 103 51 33 64 6 54 19 16 . 16 103 31 108 32 . 69 75 76 75 80 Core Hits 673 | . 40 26 43 1 . . 17 17 14 26 . 34 5 11 . 7 42 6 39 15 . 46 52 34 131 67 Critical Kills 17 | . . . 1 . . . 1 . . 2 . 2 1 2 . 1 3 . 1 . . 3 . . . . Critical Parts Destroyed 34 | . . . 5 . . . 11 . . 3 . . 1 2 . . 9 . . . . 1 . . . 2 Critical Strikes 108 | . . 2 8 . . . 22 6 6 5 . 2 2 4 . 1 12 2 1 . . 8 5 6 8 8 Burn 2 | . . 2 . . . . . . . . . . . . . . . . . . . . . . . . Meltdown 3 | . . . . . . . . . . . . . . . . . . . . . . 3 . . . . Destroy 27 | . . . . . . . . . . 5 . 2 2 4 . 1 12 . 1 . . . . . . . Smash 26 | . . . 8 . . . 15 . . . . . . . . . . . . . . 1 . . . 2 Sever 41 | . . . . . . . 7 6 6 . . . . . . . . 2 . . . 4 1 6 6 3 Impale 9 | . . . . . . . . . . . . . . . . . . . . . . . 4 . 2 3 Melee Attacks 771 | . . . 39 4 14 11 117 53 48 5 4 9 . . . . 1 8 1 7 18 33 121 122 66 90 Kinetic 5 | . . . . . . . . . . . . . . . . . . . . . . . . 3 2 . Impact 113 | . . . 39 4 . 7 41 . . 1 . . . . . . . . . . . 5 . . . 16 Slashing 452 | . . . . . 14 4 76 53 48 2 4 8 . . . . 1 8 1 7 18 27 24 95 49 13 Piercing 198 | . . . . . . . . . . . . . . . . . . . . . . 1 97 24 15 61 Sneak Attacks 66 | . . . 2 3 . . 22 . 10 2 . 3 . . . . . 8 . 1 . 6 . 2 2 5 Combat Hostiles . | . . . . . . . . . . . . . . . . . . . . . . . . . . . Follow-up Attacks 167 | . . . 6 . . . 32 18 7 . . . . . . . . . . . . 6 32 24 17 25 Damage Inflicted 59241 | . 950 1041 2104 229 . . 4577 2131 2204 1954 172 3347 557 512 . 403 3434 1422 3398 1102 . 5733 3734 5069 8464 6704 Guns 15161 | . 887 1041 847 . . . . . . 1919 172 1793 557 512 . 403 2817 639 2609 965 . . . . . . Cannons 1587 | . . . . . . . 121 . . . . . . . . . . . . . . 1466 . . . . Explosions 16684 | . 63 . 435 . . . . . . . . 1378 . . . . 570 . 785 71 . 3021 987 267 5416 3691 Melee 25678 | . . . 814 229 . . 4456 2131 2204 . . 176 . . . . . 783 . 66 . 1246 2747 4802 3011 3013 Ramming 131 | . . . 8 . . . . . . 35 . . . . . . 47 . 4 . . . . . 37 . Kinetic 14359 | . 223 668 847 . . . . . . 1919 172 1793 557 512 . 403 2817 639 2609 965 . . . 140 95 . Thermal 5462 | . 635 373 . . . . . . . . . 1378 . . . . 76 . . . . 1884 . . 1116 . Explosive 8080 | . . . 435 . . . . . . . . . . . . . . . 536 71 . 2216 712 267 407 3436 Electromagnetic 5766 | . 92 . . . . . 121 . . . . . . . . . 494 . 249 . . 387 275 . 3893 255 Impact 3334 | . . . 814 229 . . 1685 . . . . . . . . . . . . . . 180 . . . 426 Slashing 16797 | . . . . . . . 2771 2131 2204 . . 176 . . . . . 783 . 66 . 1066 489 4070 2490 551 Piercing 5312 | . . . . . . . . . . . . . . . . . . . . . . . 2258 592 426 2036 Highest Corruption 25 | . 3 . . 2 . . 3 . 11 . . 1 1 1 1 1 1 1 5 5 5 3 25 9 14 20 Average Corruption 4 | . 2 . . 2 . . 2 . 5 . . 1 1 1 1 1 1 1 4 5 5 2 14 4 11 3 Corruption Purged 15 | . . . . . . . 3 . 11 . . 1 . . . . . . . . . . . . . . Corruption Blocked . | . . . . . . . . . . . . . . . . . . . . . . . . . . . Effects 299 | . 11 . . . . . 22 . 4 . . . 5 4 3 7 2 8 16 18 14 47 55 27 39 17 Message Errors 82 | . 3 . . . . . 7 . . . . . 1 2 1 3 . 3 6 6 3 10 12 11 8 6 Matter Fused 64 | . 2 . . . . . 6 . 1 . . . 1 . 2 3 1 3 3 2 3 10 11 1 9 6 Heat Flow Errors 34 | . 2 . . . . . 4 . . . . . . . . 1 . 1 2 . 2 7 7 4 3 1 Energy Discharges 42 | . 1 . . . . . 2 . 1 . . . 1 1 . . . . 1 5 1 6 10 2 8 3 Parts Rejected 5 | . . . . . . . . . . . . . . . . . . . . 1 . . 2 2 . . Parts Fused 4 | . . . . . . . . . . . . . . . . . . . 1 . . . 1 1 . 1 Data Loss (minor) 36 | . 2 . . . . . 1 . 1 . . . 2 . . . . 1 2 1 3 9 4 4 6 . Data Loss (major) 13 | . . . . . . . 2 . . . . . . 1 . . . . . 1 1 3 3 1 1 . Misfires 2 | . 1 . . . . . . . . . . . . . . . . . . . . 1 . . . . Alerts 10 | . . . . . . . . . 1 . . . . . . . . . 1 . 1 1 4 1 1 . Misdirections 1 | . . . . . . . . . . . . . . . . . . . . . . . 1 . . . Weapon Failures 6 | . . . . . . . . . . . . . . . . . 1 . . 2 . . . . 3 . Overload Shots . | . . . . . . . . . . . . . . . . . . . . . . . . . . . Overflow Damage 3658 | . . . 252 80 . . 1138 50 418 . . 215 . . . . 48 137 . 36 . 227 95 363 164 435 Projectiles 7 | . . . . . . . . . . . . . . . . . . . . . . 7 . . . . Explosions 407 | . . . . . . . . . . . . 149 . . . . 48 . . . . 81 9 . 28 92 Melee 3244 | . . . 252 80 . . 1138 50 418 . . 66 . . . . . 137 . 36 . 139 86 363 136 343 Knockbacks 4 | . . . 1 . . . . . . . . . . . . . . . . . . . . . 1 2 Impact 4 | . . . 1 . . . . . . . . . . . . . . . . . . . . . 1 2 Kinetic . | . . . . . . . . . . . . . . . . . . . . . . . . . . . Secondary . | . . . . . . . . . . . . . . . . . . . . . . . . . . . Self-Inflicted Damage 795 | . 63 . . . . . . . . . . . . . . . 11 . 61 . . 241 19 49 302 49 Shots 31 | . 2 . . . . . . . . . . . . . . . 1 . 1 . . 6 2 1 17 1 Rammed 11 | . . . 2 . . . . . . 4 . . . . . . 3 . 1 . . . . . 1 . Targets Rammed 11 | . . . 2 . . . . . . 4 . . . . . . 3 . 1 . . . . . 1 . Kicked . | . . . . . . . . . . . . . . . . . . . . . . . . . . . Crushed . | . . . . . . . . . . . . . . . . . . . . . . . . . . . Highest Temperature 291 | . 279 117 10 . . 28 235 4 12 181 96 291 196 74 . 104 13 100 221 12 210 257 270 247 172 217 Average Temperature 54 | . 61 23 4 . . 16 98 4 12 47 34 78 75 31 . 25 7 55 51 8 97 61 111 33 66 126 Received Heat Transfer 4830 | . 213 279 315 . 142 . 354 522 117 264 . 123 27 21 . 97 198 . 405 178 . 188 168 336 312 571 Siege Activations 11 | . . . . . . . . . . . . . 1 2 . 2 4 . 1 1 . . . . . . Total Turns 291 | . . . . . . . . . . . . . 16 2 . 163 88 . 14 8 . . . . . . Longest Duration 147 | . . . . . . . . . . . . . 16 1 . 147 45 . 14 8 . . . . . . Martial Activations . | . . . . . . . . . . . . . . . . . . . . . . . . . . . Shielding Activations . | . . . . . . . . . . . . . . . . . . . . . . . . . . . Robots Disrupted 5 | . . . . . . . 1 . . . . . . . . . . . . . . . . 1 3 . Combat Hostiles 4 | . . . . . . . . . . . . . . . . . . . . . . . . 1 3 . Robots Corrupted 36 | . . . 5 . . . 4 . . . . . . . . . 3 . . . . 2 . . 17 5 Combat Hostiles 29 | . . . 4 . . . 1 . . . . . . . . . 3 . . . . 2 . . 16 3 Parts Fried 73 | . . . 5 4 . . 8 . . . . . . . . . 7 . 2 . . 3 . . 35 9 Impact Corruptions 42 | . . . 10 2 . . 22 . . . . . . . . . . . . . . 1 . . . 7 Robots Melted 3 | . . . . . . . . . . . . . . . . . . . . . . 3 . . . . Combat Hostiles 2 | . . . . . . . . . . . . . . . . . . . . . . 2 . . . . Parts Melted 18 | . 1 2 . . . . . . . 2 . . . . . . . . 1 . . 10 . . 1 1 Heat Transferred 6015 | . 1410 1258 . . . . . . . . . 950 . . . . 50 . . . . 1447 . . 900 . Parts Sabotaged 2 | . . . . . . . . . . . . . . . . . . . . . . . . 2 . . Parts Stolen . | . . . . . . . . . . . . . . . . . . . . . . . . . . . Parts Stripped 17 | . . . . . . . . . . . . . . . . . . . . . . . . 17 . . Power Chain Reactions 24 | . 2 . . . . . . . . . . . . . . . . . . . . 6 . . 16 . Alert | -11 -10 -9 -9 -9 -9 -6 -6 -6 -6 -5 -5 -5 -5 -5 -5 -4 -4 -4 -4 -4 -4 -3 -3 -2 -2 -1 ------- Run | Yrd Mat Mat Sto Rec Scr Fac Ext Cet Arc Fac Was Fac Upp Upp Zhi Pro Fac Was Fac Arm Lab Res Qua Res Tes Acc Maximum Alert Level 5 | . . . 1 . . . . . . 3 1 3 . . . . 2 . 5 3 . 3 2 2 4 5 Low Security (%) 56 | 100 100 100 66 100 . 100 100 100 100 25 49 27 . . . . 25 100 24 . . 39 . . . . Level 1 14 | . . . 33 . . . . . . 25 50 22 . . . . 59 . 12 . . 7 56 20 68 . Level 2 14 | . . . . . . . . . . 39 . . . . . . 14 . 14 . . 41 43 80 6 . Level 3 6 | . . . . . . . . . . 8 . 50 . . . . . . 15 100 . 11 . . 8 11 Level 4 3 | . . . . . . . . . . . . . . . . . . . 19 . . . . . 15 35 Level 5 2 | . . . . . . . . . . . . . . . . . . . 13 . . . . . . 40 High Security . | . . . . . . . . . . . . . . . . . . . . . . . . . . 12 Max Security . | . . . . . . . . . . . . . . . . . . . . . . . . . . . Peak Influence 2850 | . 105 101 310 101 . 96 151 82 30 753 234 1030 . . . . 459 154 1744 1014 . 736 561 654 1401 2850 Initial 842 | . . 16 . 101 . . . 81 . . 234 109 . . . . . 154 . 842 . . 375 276 337 825 Average 334 | . 32 38 126 42 . 6 52 11 1 381 196 567 . . . . 265 25 799 895 . 393 407 509 499 1881 Influence Increases 17455 | . 495 359 695 291 . 142 1064 157 140 1234 12 1307 224 110 . 70 721 44 2243 566 . 1502 765 888 1562 2864 Destroy 0b10 Robot/C 8120 | . 280 220 360 40 . 60 580 140 80 460 . 580 160 80 . 60 420 . 780 220 . 760 460 520 840 1020 Destroy 0b10 Robot/NC 620 | . 50 15 100 15 . . 60 5 45 40 . 70 . . . . 10 . 60 5 . 20 5 15 65 40 Destroy Leader 1512 | . 72 74 124 . . 10 84 . . 92 . 64 20 20 . 10 80 . 194 42 . 156 62 122 126 160 Allied During Kill 2258 | . . . 3 26 . 24 121 1 . 193 . 211 44 10 . . . . 978 174 . 181 . . . 292 Successful Hack 108 | . 6 20 10 . . 38 . . . 12 . . . . . . . . 17 . . . 5 . . . Select Force Hacks 270 | . 60 . . 210 . . . . . . . . . . . . . . . . . . . . . . Disable Machine 975 | . . . 45 . . . 15 . 15 180 . 225 . . . . 105 . 45 45 . 45 120 15 75 45 Anti-Garrison Action 950 | . . . . . . . . . . . . . . . . . . . . . . . . . 150 800 Destroy Structure 2252 | . 12 . 38 . . 10 9 11 . 242 12 142 . . . . 106 44 154 80 . 310 98 216 261 507 Lose Combat Pursuer 390 | . 15 30 15 . . . 195 . . 15 . 15 . . . . . . 15 . . 30 15 . 45 . Influence Decreases 14742 | . 456 398 435 532 19 142 917 304 140 565 525 453 728 417 199 70 280 485 523 1316 970 833 942 780 785 1528 Entered New Map 4879 | . . 23 . 159 19 . . 66 . . 435 47 374 97 199 . . 287 . 878 970 . 294 216 263 552 Time Decay 7544 | . 416 335 395 373 . 64 592 131 140 405 90 286 294 310 . 70 240 198 318 278 . 649 538 514 422 486 Lost Part 996 | . 40 40 40 . . . 40 76 . . . . . 10 . . 40 . 30 . . 10 110 50 100 410 Lost Ally 1323 | . . . . . . 78 285 31 . 160 . 120 60 . . . . . 175 160 . 174 . . . 80 Squads Dispatched 96 | . 4 1 1 . . 5 3 . . 9 . 3 . . . . 8 . 7 7 . 10 4 8 11 15 Investigation 23 | . 4 1 . . . 2 . . . 2 . 2 . . . . 1 . 2 . . 4 . . . 5 Extermination 18 | . . . . . . 1 . . . 2 . 1 . . . . 1 . 1 2 . . 3 3 2 2 Reinforcement 30 | . . . 1 . . 2 3 . . 4 . . . . . . 1 . 2 3 . 6 1 1 5 1 Assault 17 | . . . . . . . . . . 1 . . . . . . . . 2 2 . . . 1 4 7 Garrison 8 | . . . . . . . . . . . . . . . . . 5 . . . . . . 3 . . Intercept . | . . . . . . . . . . . . . . . . . . . . . . . . . . . Searches Triggered . | . . . . . . . . . . . . . . . . . . . . . . . . . . . Construction Impeded 5 | . . . . . . . 1 . . 2 . . . . . . 1 . . . . . . . 1 . Haulers Reinforced 5 | . . . . . . . . . . 1 . . . . . . . . 1 . . 2 . . 1 . Active Scanning Responses . | . . . . . . . . . . . . . . . . . . . . . . . . . . . Cargo Convoy Interrupts . | . . . . . . . . . . . . . . . . . . . . . . . . . . . Stealth | -11 -10 -9 -9 -9 -9 -6 -6 -6 -6 -5 -5 -5 -5 -5 -5 -4 -4 -4 -4 -4 -4 -3 -3 -2 -2 -1 --------- Run | Yrd Mat Mat Sto Rec Scr Fac Ext Cet Arc Fac Was Fac Upp Upp Zhi Pro Fac Was Fac Arm Lab Res Qua Res Tes Acc Distress Signals 28 | . 1 1 . . . . 4 2 . . . 1 . . . . 1 . 1 4 . 4 2 4 2 1 Communications Jammed 113 | . . . . . . . . . . . . . . . . . . . 49 . . . . 8 21 35 Distress Signals 111 | . . . . . . . . . . . . . . . . . . . 49 . . . . 6 21 35 Times Spotted 572 | . 28 17 27 . 12 2 38 11 6 32 7 22 7 4 . 3 28 1 40 29 . 45 30 44 54 85 Peak Tracking Total 14 | . 5 8 6 . 5 1 5 5 2 10 5 5 3 3 . 3 7 1 8 9 . 6 5 7 13 14 Tactical Retreats 20 | . 1 1 1 . . . 9 . . 1 1 1 . . . . . . 1 . . 1 1 . 2 . Traps | -11 -10 -9 -9 -9 -9 -6 -6 -6 -6 -5 -5 -5 -5 -5 -5 -4 -4 -4 -4 -4 -4 -3 -3 -2 -2 -1 ------- Run | Yrd Mat Mat Sto Rec Scr Fac Ext Cet Arc Fac Was Fac Upp Upp Zhi Pro Fac Was Fac Arm Lab Res Qua Res Tes Acc Traps Triggered 14 | . 2 . 4 . . . 1 . . 1 . 1 . . . . 2 . 1 . . . . 1 1 . Indirectly . | . . . . . . . . . . . . . . . . . . . . . . . . . . . Trap Hack Attempts . | . . . . . . . . . . . . . . . . . . . . . . . . . . . Triggered . | . . . . . . . . . . . . . . . . . . . . . . . . . . . Disarmed . | . . . . . . . . . . . . . . . . . . . . . . . . . . . Reprogrammed . | . . . . . . . . . . . . . . . . . . . . . . . . . . . Reused . | . . . . . . . . . . . . . . . . . . . . . . . . . . . Traps Extracted . | . . . . . . . . . . . . . . . . . . . . . . . . . . . Installed . | . . . . . . . . . . . . . . . . . . . . . . . . . . . Triggered . | . . . . . . . . . . . . . . . . . . . . . . . . . . . Machines | -11 -10 -9 -9 -9 -9 -6 -6 -6 -6 -5 -5 -5 -5 -5 -5 -4 -4 -4 -4 -4 -4 -3 -3 -2 -2 -1 ---------- Run | Yrd Mat Mat Sto Rec Scr Fac Ext Cet Arc Fac Was Fac Upp Upp Zhi Pro Fac Was Fac Arm Lab Res Qua Res Tes Acc Machines Disabled 75 | . . . 3 . 4 . 1 . 1 12 . 15 . . . . 7 . 6 3 2 3 8 1 6 3 Max in Single Turn 14 | . . . 1 . 1 . 1 . 1 2 . 14 . . . . 4 . 1 1 1 1 1 1 2 1 Garrison Access 6 | . . . 1 . . . . . . . . . . . . . . . . . . . . . 1 4 Energy Cycler 1 | . . . . . . . 1 . . . . . . . . . . . . . . . . . . . Machines Repaired . | . . . . . . . . . . . . . . . . . . . . . . . . . . . Machines Dismantled . | . . . . . . . . . . . . . . . . . . . . . . . . . . . Machines Sabotaged . | . . . . . . . . . . . . . . . . . . . . . . . . . . . Overloaded Fab Kills . | . . . . . . . . . . . . . . . . . . . . . . . . . . . Hacking | -11 -10 -9 -9 -9 -9 -6 -6 -6 -6 -5 -5 -5 -5 -5 -5 -4 -4 -4 -4 -4 -4 -3 -3 -2 -2 -1 --------- Run | Yrd Mat Mat Sto Rec Scr Fac Ext Cet Arc Fac Was Fac Upp Upp Zhi Pro Fac Was Fac Arm Lab Res Qua Res Tes Acc Machines Accessed 62 | . 6 3 3 9 2 5 2 1 . 5 . 4 . . 4 . 1 . 4 1 . 4 1 1 1 5 Terminals 20 | . 4 2 2 2 . 2 2 1 . . . 1 . . . . . . 1 . . 1 1 . 1 . Fabricators 6 | . . . . . . . . . . 3 . 1 . . . . . . 1 1 . . . . . . Repair Stations 1 | . . . . . . . . . . . . . . . . . . . 1 . . . . . . . Recycling Units 19 | . 2 . . 7 . 2 . . . 2 . 2 . . . . . . 1 . . 2 . . . 1 Scanalyzers 3 | . . 1 . . . 1 . . . . . . . . . . . . . . . 1 . . . . Garrison Access 7 | . . . 1 . . . . . . . . . . . . . 1 . . . . . . 1 . 4 Total Hacks 144 | . 14 8 11 13 20 6 3 2 . 10 . 5 . . 17 . 4 . 9 2 . 8 2 1 2 7 Successful 89 | . 6 4 3 9 20 5 . 1 . 6 . 2 . . 17 . . . 5 1 . 4 1 . . 5 Failed 55 | . 8 4 8 4 . 1 3 1 . 4 . 3 . . . . 4 . 4 1 . 4 1 1 2 2 Catastrophic 6 | . 2 . . . . . . . . 1 . . . . . . . . 1 . . . . 1 1 . Database Lockouts . | . . . . . . . . . . . . . . . . . . . . . . . . . . . Manual 82 | . 15 6 5 13 . 3 1 . . 8 . 4 . . . . 3 . 6 . . 7 2 . 2 7 Terminals 53 | . 11 6 9 6 . 2 3 2 . . . 1 . . . . . . 5 . . 4 2 . 2 . Fabricators 13 | . . . . . . . . . . 7 . 2 . . . . . . 2 2 . . . . . . Repair Stations 1 | . . . . . . . . . . . . . . . . . . . 1 . . . . . . . Recycling Units 22 | . 3 . . 7 . 2 . . . 3 . 2 . . . . . . 1 . . 3 . . . 1 Scanalyzers 5 | . . 2 . . . 2 . . . . . . . . . . . . . . . 1 . . . . Garrison Access 13 | . . . 2 . . . . . . . . . . . . . 4 . . . . . . 1 . 6 Terminal Hacks 52 | . 4 2 2 2 20 2 . 1 . . . . . . 17 . . . 2 . . . . . . . Record 26 | . . . . . 20 . . 1 . . . . . . 5 . . . . . . . . . . . Part Schematic 7 | . 2 . . 1 . . . . . . . . . . 4 . . . . . . . . . . . Robot Analysis 4 | . . . . . . . . . . . . . . . 4 . . . . . . . . . . . Prototype ID Bank 4 | . . . . . . . . . . . . . . . 4 . . . . . . . . . . . Open Door 1 | . . . . . . 1 . . . . . . . . . . . . . . . . . . . . Branch Access Points 2 | . . 1 . . . . . . . . . . . . . . . . 1 . . . . . . . Transport Status 1 | . 1 . . . . . . . . . . . . . . . . . . . . . . . . . Hauler Manifests 2 | . 1 . 1 . . . . . . . . . . . . . . . . . . . . . . . Registered Components 1 | . . 1 . . . . . . . . . . . . . . . . . . . . . . . . Zone Layout 4 | . . . 1 1 . 1 . . . . . . . . . . . . 1 . . . . . . . Fabricator Hacks 4 | . . . . . . . . . . 2 . . . . . . . . 1 1 . . . . . . Network Status 3 | . . . . . . . . . . 1 . . . . . . . . 1 1 . . . . . . Build 1 | . . . . . . . . . . 1 . . . . . . . . . . . . . . . . Repair Station Hacks . | . . . . . . . . . . . . . . . . . . . . . . . . . . . Recycling Unit Hacks . | . . . . . . . . . . . . . . . . . . . . . . . . . . . Scanalyzer 3 | . . 1 . . . 1 . . . . . . . . . . . . . . . 1 . . . . Insert Component 3 | . . 1 . . . 1 . . . . . . . . . . . . . . . 1 . . . . Garrison Access Hacks 1 | . . . 1 . . . . . . . . . . . . . . . . . . . . . . . Seal Access 1 | . . . 1 . . . . . . . . . . . . . . . . . . . . . . . Unauthorized Hacks 29 | . 2 1 . 7 . 2 . . . 4 . 2 . . . . . . 2 . . 3 1 . . 5 Terminals 3 | . . 1 . . . . . . . . . . . . . . . . . . . 1 1 . . . Botnet 3 | . . 1 . . . . . . . . . . . . . . . . . . . 1 1 . . . Fabricators 3 | . . . . . . . . . . 2 . . . . . . . . 1 . . . . . . . Prioritize 1 | . . . . . . . . . . 1 . . . . . . . . . . . . . . . . Haulers 2 | . . . . . . . . . . 1 . . . . . . . . 1 . . . . . . . Repair Stations . | . . . . . . . . . . . . . . . . . . . . . . . . . . . Recycling Units 19 | . 2 . . 7 . 2 . . . 2 . 2 . . . . . . 1 . . 2 . . . 1 Tunnel 9 | . 2 . . 7 . . . . . . . . . . . . . . . . . . . . . . Scrapoids 10 | . . . . . . 2 . . . 2 . 2 . . . . . . 1 . . 2 . . . 1 Scanalyzers . | . . . . . . . . . . . . . . . . . . . . . . . . . . . Garrison Access 4 | . . . . . . . . . . . . . . . . . . . . . . . . . . 4 Jam 4 | . . . . . . . . . . . . . . . . . . . . . . . . . . 4 Data Cores Recovered 1 | . 1 . . . . . . . . . . . . . . . . . . . . . . . . . Used . | . . . . . . . . . . . . . . . . . . . . . . . . . . . Hacking Detections 30 | . 3 2 2 2 . 2 2 1 . 3 . 2 . . . . 1 . 2 1 . 2 1 1 1 2 Full Trace Events 6 | . 3 1 1 . . . . . . . . . . . . . 1 . . . . . . . . . Feedback Events 1 | . . . . . . . . . . . . . . . . . 1 . . . . . . . . . Corruption 1 | . . . . . . . . . . . . . . . . . 1 . . . . . . . . . Feedback Blocked . | . . . . . . . . . . . . . . . . . . . . . . . . . . . Robot Schematics Acquired . | . . . . . . . . . . . . . . . . . . . . . . . . . . . Robots Built . | . . . . . . . . . . . . . . . . . . . . . . . . . . . Authchips . | . . . . . . . . . . . . . . . . . . . . . . . . . . . Time . | . . . . . . . . . . . . . . . . . . . . . . . . . . . Total Robot Build Rating . | . . . . . . . . . . . . . . . . . . . . . . . . . . . Part Schematics Acquired 8 | . 2 . . 1 . . . . . . . . . . 4 . . . . . . . . . 1 . Parts Built 1 | . . . . . . . . . . 1 . . . . . . . . . . . . . . . . Authchips . | . . . . . . . . . . . . . . . . . . . . . . . . . . . Time 64 | . . . . . . . . . . 64 . . . . . . . . . . . . . . . . Total Part Build Rating 8 | . . . . . . . . . . 8 . . . . . . . . . . . . . . . . Part Studies Acquired . | . . . . . . . . . . . . . . . . . . . . . . . . . . . Parts Repaired . | . . . . . . . . . . . . . . . . . . . . . . . . . . . Time . | . . . . . . . . . . . . . . . . . . . . . . . . . . . Parts Recycled . | . . . . . . . . . . . . . . . . . . . . . . . . . . . Recycled Matter . | . . . . . . . . . . . . . . . . . . . . . . . . . . . Retrieved Matter . | . . . . . . . . . . . . . . . . . . . . . . . . . . . Retrieved Components . | . . . . . . . . . . . . . . . . . . . . . . . . . . . Parts Scanalyzed 1 | . . . . . . 1 . . . . . . . . . . . . . . . . . . . . Part Schematics Acquired . | . . . . . . . . . . . . . . . . . . . . . . . . . . . Parts Damaged . | . . . . . . . . . . . . . . . . . . . . . . . . . . . Bothacking | -11 -10 -9 -9 -9 -9 -6 -6 -6 -6 -5 -5 -5 -5 -5 -5 -4 -4 -4 -4 -4 -4 -3 -3 -2 -2 -1 ------------ Run | Yrd Mat Mat Sto Rec Scr Fac Ext Cet Arc Fac Was Fac Upp Upp Zhi Pro Fac Was Fac Arm Lab Res Qua Res Tes Acc Used RIF Installer . | . . . . . . . . . . . . . . . . . . . . . . . . . . . Robots Hacked 4 | . . . . . . . . . . 2 . 1 . . . . . . . . . 1 . . . . Non-combat 4 | . . . . . . . . . . 2 . 1 . . . . . . . . . 1 . . . . Combat . | . . . . . . . . . . . . . . . . . . . . . . . . . . . Robot Hacks Applied 4 | . . . . . . . . . . 2 . 1 . . . . . . . . . 1 . . . . find_chute 1 | . . . . . . . . . . 1 . . . . . . . . . . . . . . . . find_recycling 3 | . . . . . . . . . . 1 . 1 . . . . . . . . . 1 . . . . Relay Couplers Released 6 | . . . . . . . . . . . . . . . . . . . . . . . 4 . 2 . Machine Destruction 2 | . . . . . . . . . . . . . . . . . . . . . . . . . 2 . Programmers 4 | . . . . . . . . . . . . . . . . . . . . . . . 4 . . . Fabnet Peak Effective % . | . . . . . . . . . . . . . . . . . . . . . . . . . . . Robots Rewired 15 | . . . . . . . 15 . . . . . . . . . . . . . . . . . . . Allies Hacked 7 | . . . . . . . . . . . . . 1 . . . . . 5 1 . . . . . . Hacks Repelled . | . . . . . . . . . . . . . . . . . . . . . . . . . . . Allies | -11 -10 -9 -9 -9 -9 -6 -6 -6 -6 -5 -5 -5 -5 -5 -5 -4 -4 -4 -4 -4 -4 -3 -3 -2 -2 -1 -------- Run | Yrd Mat Mat Sto Rec Scr Fac Ext Cet Arc Fac Was Fac Upp Upp Zhi Pro Fac Was Fac Arm Lab Res Qua Res Tes Acc Total Allies 99 | . . . 10 . . 10 16 . . 10 . 10 . . . . . 20 5 . . 10 . . . 8 Largest Group 20 | . . . 10 10 10 5 6 3 . 5 . 6 4 1 1 1 . 20 18 13 . 9 . . . 5 Highest-Rated Group 799 | . . . 88 88 88 140 149 70 . 241 . 282 188 47 47 47 . 799 754 538 . 572 . . . 379 Highest-Rated Ally 135 | . . . 16 16 16 28 39 25 . 50 . 50 47 47 47 47 . 50 50 47 . 67 . . . 135 Initial UFD Resources 22 | . . . . . . 22 16 16 16 19 13 13 7 7 7 10 10 10 10 7 7 9 3 7 7 10 Total Orders 14 | . . . . . 2 . . . . . . 1 . . . . . . 8 3 . . . . . . STAY 2 | . . . . . 1 . . . . . . 1 . . . . . . . . . . . . . . FOLLOW 1 | . . . . . 1 . . . . . . . . . . . . . . . . . . . . . EXPLORE 9 | . . . . . . . . . . . . . . . . . . . 6 3 . . . . . . RETURN 2 | . . . . . . . . . . . . . . . . . . . 2 . . . . . . . Ally Attacks 1096 | . . . . 15 68 30 138 6 . 101 . 85 26 4 . 1 . 10 314 86 . 104 . . . 108 Total Damage 23095 | . . . . 117 615 391 2184 175 . 2322 . 1627 569 84 . 27 . 578 6436 2106 . 2426 . . . 3438 Kills 143 | . . . . 2 9 3 17 1 . 15 . 16 6 1 . . . 1 35 9 . 10 . . . 18 Allies Corrupted 7 | . . . . . . . 1 . . . . 1 . . . . . . 1 3 . 1 . . . . Allies Melted 2 | . . . . . 1 . 1 . . . . . . . . . . . . . . . . . . . Intel | -11 -10 -9 -9 -9 -9 -6 -6 -6 -6 -5 -5 -5 -5 -5 -5 -4 -4 -4 -4 -4 -4 -3 -3 -2 -2 -1 ------- Run | Yrd Mat Mat Sto Rec Scr Fac Ext Cet Arc Fac Was Fac Upp Upp Zhi Pro Fac Was Fac Arm Lab Res Qua Res Tes Acc Active Infowar (turns) 12209 | . . . . . . 652 . . 296 . 126 369 577 655 248 659 581 535 657 503 . 1761 1134 1162 915 1379 Sensors 7161 | . . . . . . . . . . . . . . 417 248 659 581 367 165 . . 1080 896 829 543 1376 IFF 753 | . . . . . . . . . . . . . 577 176 . . . . . . . . . . . . Terrain 748 | . . . . . . . . . . . . . . 78 . . 18 . . . . . . 357 293 2 Structural 4061 | . . . . . . 111 . . 296 . 126 369 . . . . 483 535 486 503 . 526 626 . . . Traps 541 | . . . . . . 541 . . . . . . . . . . . . . . . . . . . . T.N.C. 153 | . . . . . . . . . . . . . . . . . . . . . . 153 . . . . Jamming 2836 | . . . . . . . . . . . . . . . . . . . 353 43 . . 198 759 209 1274 ECM 2 | . . . . . . . . . . . . . . . . . . . . . . 2 . . . . Robot Analysis Total 4 | . . . . . . . . . . . . . . . 4 . . . . . . . . . . . Derelict Logs Recovered 3 | . . . . . . . . . . . . . 1 2 . . . . . . . . . . . . Drone Launches 10 | . . . . . . . . . . . . . . . . . . . 7 3 . . . . . . Drone Recoveries 5 | . . . . . . . . . . . . . . . . . . . 4 1 . . . . . . Exploration | -11 -10 -9 -9 -9 -9 -6 -6 -6 -6 -5 -5 -5 -5 -5 -5 -4 -4 -4 -4 -4 -4 -3 -3 -2 -2 -1 ------------- Run | Yrd Mat Mat Sto Rec Scr Fac Ext Cet Arc Fac Was Fac Upp Upp Zhi Pro Fac Was Fac Arm Lab Res Qua Res Tes Acc Turns Passed 31337 | 70 1751 915 2297 956 2613 760 2490 642 2086 1111 199 637 646 682 252 760 589 1250 841 607 614 3163 1525 1405 1023 1453 Spaces Moved 13005 | 41 1018 347 816 374 1096 318 996 285 848 568 98 304 368 357 150 351 207 600 343 278 238 1028 595 507 315 559 Core 148 | 4 . . . . 141 . . . . . . . . . . . . . . . . . . . . 3 Treads 11562 | 37 265 227 816 374 955 318 996 285 848 568 98 304 368 357 150 351 207 600 343 278 238 1028 595 507 315 134 Legs 194 | . . . . . . . . . . . . . . . . . . . . . . . . . . 194 Wheels 1101 | . 753 120 . . . . . . . . . . . . . . . . . . . . . . . 228 Hover . | . . . . . . . . . . . . . . . . . . . . . . . . . . . Flight . | . . . . . . . . . . . . . . . . . . . . . . . . . . . Fastest Speed 50 | 50 115 125 240 240 50 156 152 150 160 160 160 160 160 160 160 160 160 160 160 160 164 159 165 166 150 50 Average Speed 187 | 149 145 200 240 240 207 217 194 157 200 160 160 160 160 160 160 160 160 160 160 161 164 210 188 191 195 198 Slowest Speed 455 | 160 240 240 240 240 240 224 240 220 240 240 160 160 160 160 160 160 160 240 160 164 164 247 259 263 252 455 Overloaded Moves . | . . . . . . . . . . . . . . . . . . . . . . . . . . . Propulsion Burnouts . | . . . . . . . . . . . . . . . . . . . . . . . . . . . Robots Hopped . | . . . . . . . . . . . . . . . . . . . . . . . . . . . Potential Cave-ins 16 | . . . . . . . . 1 . . 10 . . . . . . . . . . . . . . 5 Cave-ins Triggered . | . . . . . . . . . . . . . . . . . . . . . . . . . . . Teleports 2 | . . . . . . . . . . . . . . . . . . . . 1 . . . 1 . . Exploration Rate (%) 50 | 3 96 35 76 66 62 11 87 68 98 14 66 10 61 57 60 59 7 96 17 27 93 30 58 19 59 22 Regions Visited 26 Branch Regions 14 Pre-discovered Areas 17 | . 2 . . 7 4 . . . . . . . . 1 3 . . . . . . . . . . . Known Exits Taken 12 | . . 1 . . . . . . 1 . . 1 1 1 1 1 . . 1 . . 1 1 1 1 . Unknown Exits Taken 10 | 1 1 . 1 1 1 1 1 1 . . . . . . . . . . . 1 1 . . . . . Scrap Searched 6 | . . . . . 2 . . . . . . . 2 2 . . . . . . . . . . . . Spaces Dug 105 | . . . . . 6 9 . . . 2 16 8 4 5 . . 1 . . 5 . 6 11 22 4 6 Terrain Destroyed 1209 | . 12 . 41 . 6 9 . 14 . 84 17 50 22 10 . 14 52 10 77 41 . 171 119 112 140 208 Melee 80 | . . . . . 6 9 . . . 2 4 6 . . . . 1 . . 4 . 5 11 22 4 6 Projectile 191 | . . . . . . . . . . 50 13 16 22 10 . 14 31 10 18 3 . 4 . . . . AOE 935 | . 12 . 41 . . . . 14 . 32 . 27 . . . . 20 . 59 32 . 162 108 90 136 202 Terrain Rammed . | . . . . . . . . . . . . . . . . . . . . . . . . . . . Walls Destroyed . | . . . . . . . . . . . . . . . . . . . . . . . . . . . Machines Disabled . | . . . . . . . . . . . . . . . . . . . . . . . . . . . Actions | -11 -10 -9 -9 -9 -9 -6 -6 -6 -6 -5 -5 -5 -5 -5 -5 -4 -4 -4 -4 -4 -4 -3 -3 -2 -2 -1 --------- Run | Yrd Mat Mat Sto Rec Scr Fac Ext Cet Arc Fac Was Fac Upp Upp Zhi Pro Fac Was Fac Arm Lab Res Qua Res Tes Acc Total 18065 | 48 1158 482 1023 428 1420 365 1442 421 1193 694 117 378 402 449 162 532 346 856 524 380 434 1914 816 739 577 765 Wait 2321 | . 12 17 52 46 218 1 60 32 195 43 4 4 19 77 . 170 62 170 69 17 146 693 37 66 87 24 Move 12980 | 40 1017 346 815 373 1095 317 995 284 847 568 97 303 367 356 149 350 207 599 342 277 237 1027 594 506 314 558 Hop . | . . . . . . . . . . . . . . . . . . . . . . . . . . . Pick Up 361 | 2 31 19 16 2 42 11 19 17 43 14 . 7 . 3 3 . 2 16 13 14 8 18 16 11 15 19 Fast Attach 134 | 5 8 6 4 . 6 1 4 4 11 1 2 3 . . 2 . 1 9 6 8 5 10 12 7 7 12 Attach 173 | . 2 9 7 1 5 6 5 15 10 6 . 2 2 1 . . 6 2 6 4 3 6 10 12 15 38 Detach 33 | . . . . . . . 1 2 . . . . . . . . 1 1 1 1 2 3 3 3 5 10 Swap 360 | . 2 7 21 1 12 11 27 14 9 10 4 15 2 4 4 6 9 9 19 12 4 43 33 33 35 14 Drop 360 | 1 11 23 19 2 28 6 28 15 41 14 . 10 2 1 4 . . 28 18 20 11 26 18 9 17 8 Fire 546 | . 75 55 51 . . 1 9 6 . 29 6 25 10 7 . 6 54 14 48 19 . 62 9 4 35 21 Melee 565 | . . . 32 3 14 11 78 32 37 5 4 9 . . . . 1 8 1 7 18 26 84 88 46 61 Ram . | . . . . . . . . . . . . . . . . . . . . . . . . . . . Kick . | . . . . . . . . . . . . . . . . . . . . . . . . . . . Crush 11 | . . . 2 . . . . . . 4 . . . . . . 3 . 1 . . . . . 1 . Escape Stasis 4 | . . . 4 . . . . . . . . . . . . . . . . . . . . . . . Rewire 217 | . . . . . . . 216 . . . . . . . . . . . . 1 . . . . . . Trap . | . . . . . . . . . . . . . . . . . . . . . . . . . . . Miscellaneous . | . . . . . . . . . . . . . . . . . . . . . . . . . . . Route ------- -11/Scrapyard -10/Materials (discovered 6 exits: *Mat x3 / [*Min x2] / [*Sub]) -9/Materials (discovered 4 exits: [*Mat] / *Min x2 / *Sto) -9/Storage -9/Recycling (discovered 2 exits: [*Fac] / *Scr) -9/Scraptown -6/Factory (discovered 3 exits: Fac / Low / *Ext) -6/Extension (discovered 3 exits: *Fac x2 / *Cet) -6/Cetus (discovered 2 exits: *Fac / *Arc) -6/Archives (discovered 3 exits: *Fac / [*Hub x2]) -5/Factory (discovered 2 exits: Upp x2) -5/Waste -5/Factory (discovered 3 exits: *Fac / *Upp x2) -5/Upper Caves -5/Upper Caves (discovered 2 exits: Fac / *Zhi) -5/Zhirov -4/Proximity Caves -4/Factory (discovered 2 exits: Res / Upp) -4/Waste -4/Factory (discovered 3 exits: *Upp x2 / *Arm) -4/Armory (discovered 2 exits: Res / [*Lab]) -4/Lab -3/Research (discovered 3 exits: Res / *Qua x2) -3/Quarantine -2/Research (discovered 3 exits: Acc / *Tes x2) -2/Testing -1/Access (discovered 2 exits: *Sur / Com) To Epsilon Eridani History --------- Turn | Location | Event 14 | -11/Scrapyard | Discovered new exit (range 15) 71 | -11/Scrapyard | Entered Materials 300 | -10/Materials | Build established: Mutant 353 | -10/Materials | Discovered new exit (range 12) 467 | -10/Materials | Discovered new exit (range 4) 872 | -10/Materials | Build established: Scavenger-Mutant 885 | -10/Materials | Discovered new exit (range 15) 1083 | -10/Materials | Discovered new exit (range 12) 1324 | -10/Materials | Discovered new exit (range 9) 1456 | -10/Materials | Discovered new exit (range 15) 1822 | -10/Materials | Entered another Materials area 1822 | -9/Materials | Evolved 2 slots: Propulsion x1, Utility x1 1981 | -9/Materials | Identified exit to Mines 1981 | -9/Materials | Identified exit to Storage 2049 | -9/Materials | Discovered new exit (range 16) 2372 | -9/Materials | Build established: Mutant 2737 | -9/Materials | Entered Storage 3381 | -9/Storage | Used back door to open Recycling access 3381 | -9/Storage | Discovered new exit (range 5) 4172 | -9/Storage | Build established: Scavenger-Mutant 4242 | -9/Storage | Core integrity fell below 50% 4353 | -9/Storage | Lost 3 parts (2n1u) 4404 | -9/Storage | Core integrity fell below 20% 4581 | -9/Storage | Assisted by bots powering up and referring to "LRC-V3" 4884 | -9/Storage | Build established: Commander-Mutant 5034 | -9/Storage | Entered Recycling 5034 | -9/Recycling | Accompanied by 10 allies 5733 | -9/Recycling | Discovered new exit (range 5) 5896 | -9/Recycling | Scanned before Scraplab entrance 5930 | -9/Recycling | Entered Scraplab 5951 | -9/Recycling | Discovered new exit (range 3) 5990 | -9/Recycling | Entered Scraptown 5990 | -9/Scraptown | Accompanied by 10 allies 5990 | -9/Scraptown | System corruption cleaned by C-Scrubber 6125 | -9/Scraptown | Heard Great Nut preacher, LISTEN AND RECITE! 6710 | -9/Scraptown | Visited UFD Registry 6710 | -9/Scraptown | Registered with UFD as "Chainhead" 6763 | -9/Scraptown | Visited Abandonware Association 6799 | -9/Scraptown | Learned abandonware demo "MELTYB.EXE" 6854 | -9/Scraptown | Visited Curators Association 6931 | -9/Scraptown | Visited Infowarlord's Domain 6949 | -9/Scraptown | Found Exp. Terrain Scanner 7007 | -9/Scraptown | Visited Scrap Suit Storage 7041 | -9/Scraptown | Visited Junk Repository 7129 | -9/Scraptown | Visited Modified Component R&D 7281 | -9/Scraptown | Visited Sword Containment 7333 | -9/Scraptown | Visited A0-MCA Data Center 7377 | -9/Scraptown | Visited Cartography Club 7439 | -9/Scraptown | Released all parts (8) 7477 | -9/Scraptown | Learned location of Armory (-4) 7477 | -9/Scraptown | Learned 12 Materials zone layouts 7477 | -9/Scraptown | Learned 24 Factory zone layouts 7477 | -9/Scraptown | Learned 8 Access zone layouts 7477 | -9/Scraptown | Learned 4 Storage zone layouts 7477 | -9/Scraptown | Learned 8 Upper Caves zone layouts 7477 | -9/Scraptown | Learned Factory emergency access door positions 7477 | -9/Scraptown | Learned location of 2 exits from Research 7477 | -9/Scraptown | Learned location of 3 exits from Upper Caves 7496 | -9/Scraptown | Found Deep Structural Scanner 7778 | -9/Scraptown | Found Scrap Suit 7942 | -9/Scraptown | Met Optimus 7942 | -9/Scraptown | Accepted into 0bPrime 8081 | -9/Scraptown | Build established: Commander-Scrapper 8342 | -9/Scraptown | Civil war broke out across Scraptown 8350 | -9/Scraptown | Found Vmp. Humpback 8364 | -9/Scraptown | Found Surveybot 24 Chip 8534 | -9/Scraptown | Lost 9 allies 8591 | -9/Scraptown | Discovered new exit (range 7) 8603 | -9/Scraptown | Entered Factory 8603 | -6/Factory | Evolved 6 slots: Propulsion x2, Utility x2, Weapon x2 8604 | -6/Factory | Identified exit to Lower Caves 8604 | -6/Factory | Identified exit to Factory 8624 | -6/Factory | Lost 7 allies 8682 | -6/Factory | Scrapoid reinforcements arrived 8854 | -6/Factory | Lost 5 allies 9004 | -6/Factory | Found Scrap Suit 9112 | -6/Factory | Build established: Mutant 9312 | -6/Factory | Discovered new exit (range 10) 9345 | -6/Factory | Scrapoids reinforcements arrived? 9363 | -6/Factory | Entered Extension 9363 | -6/Extension | Accompanied by 5 allies 9664 | -6/Extension | Energy Cycler disabled 9665 | -6/Extension | Rescued a captive Derelict 9665 | -6/Extension | Rescued a captive Derelict 9666 | -6/Extension | Rescued a captive Derelict 9667 | -6/Extension | Rescued a captive Derelict 9670 | -6/Extension | Rescued a captive Derelict 9670 | -6/Extension | Rescued a captive Derelict 9674 | -6/Extension | Rescued a captive Derelict 9676 | -6/Extension | Rescued a captive Derelict 9695 | -6/Extension | Lost 4 allies 9954 | -6/Extension | Lost 6 allies 10407 | -6/Extension | Spotted B-75 Beast 10433 | -6/Extension | Spotted B-75 Beast 10463 | -6/Extension | Lost 3 allies 10482 | -6/Extension | Destroyed B-75 Beast 10548 | -6/Extension | Destroyed B-75 Beast 10558 | -6/Extension | Lost 3 parts (2n1u) 10596 | -6/Extension | Extracted ID and sensor layout for unrecognized location from A7's data core 10656 | -6/Extension | Discovered exit to Factory (range 15) 10906 | -6/Extension | Build established: Gladiator 11188 | -6/Extension | Disrupted transfer network 11716 | -6/Extension | Lost 4 allies 11819 | -6/Extension | Discovered exit to Factory (range 10) 11820 | -6/Extension | Discovered new exit (range 6) 11853 | -6/Extension | Entered Cetus 11853 | -6/Cetus | Accompanied by 3 allies 11886 | -6/Cetus | Spotted Cetus Guard 11886 | -6/Cetus | Spotted Cetus Guard 11888 | -6/Cetus | Spotted Cetus Guard 11889 | -6/Cetus | Spotted Cetus Guard 11909 | -6/Cetus | Attached CPS modules to Cetus Guard 11911 | -6/Cetus | Attached CPS modules to Cetus Guard 11921 | -6/Cetus | Allies destroyed Cetus Guard 11944 | -6/Cetus | Destroyed Cetus Guard 11948 | -6/Cetus | Destroyed Cetus Guard 11957 | -6/Cetus | Lost 3 allies 11963 | -6/Cetus | Lost 8 parts (3n3u2w) 12132 | -6/Cetus | Discovered new exit (range 16) 12169 | -6/Cetus | Build established: Scavenger-Gladiator 12188 | -6/Cetus | Spotted Cetus Guard 12188 | -6/Cetus | Spotted Cetus Guard 12235 | -6/Cetus | Spotted Cetus Guard 12236 | -6/Cetus | Spotted Cetus Guard 12248 | -6/Cetus | Core integrity fell below 50% 12248 | -6/Cetus | Destroyed Cetus Guard 12268 | -6/Cetus | Destroyed Cetus Guard 12282 | -6/Cetus | Destroyed Cetus Guard 12300 | -6/Cetus | Destroyed Cetus Guard 12310 | -6/Cetus | Lost 6 parts (4n1u1w) 12360 | -6/Cetus | Discovered exit to Factory (range 16) 12370 | -6/Cetus | Met Revision 17 12495 | -6/Cetus | Entered Archives 12676 | -6/Archives | Unable to access archive contents 12763 | -6/Archives | System corruption reached 10% 12850 | -6/Archives | Discovered new exit (range 16) 12973 | -6/Archives | Discovered exit to Factory (range 15) 13094 | -6/Archives | Discovered new exit (range 15) 13706 | -6/Archives | Build established: Hauler-Gladiator 14168 | -6/Archives | Build established: Scavenger-Gladiator 14581 | -6/Archives | Entered Factory 14581 | -5/Factory | Evolved 2 slots: Propulsion x2 14582 | -5/Factory | Identified exit to Upper Caves 14690 | -5/Factory | Scrapoids reinforcements arrived? 15018 | -5/Factory | Build established: Scavenger-Tank 15244 | -5/Factory | Scrapoids reinforcements arrived? 15481 | -5/Factory | First assault squad dispatched 15663 | -5/Factory | Fabricated Imp. Heavy Siege Treads (x1) 15692 | -5/Factory | Manually triggered Chute Trap 15692 | -5/Factory | Sucked down chute 15692 | -5/Factory | Entered Waste 15705 | -5/Waste | Spotted C-40 Crusher 15705 | -5/Waste | Spotted C-40 Crusher 15720 | -5/Waste | Lost 4 allies 15744 | -5/Waste | Spotted C-40 Crusher 15764 | -5/Waste | Spotted C-40 Crusher 15797 | -5/Waste | Spotted C-40 Crusher 15799 | -5/Waste | Crushed by Compactor (0 parts destroyed, 1 dropped) 15802 | -5/Waste | Crushed by Compactor (0 parts destroyed, 1 dropped) 15867 | -5/Waste | Discovered new exit (range 13) 15891 | -5/Waste | Entered Factory 16034 | -5/Factory | Scrapoids reinforcements arrived? 16062 | -5/Factory | Discovered new exit (range 12) 16116 | -5/Factory | Lost 3 allies 16220 | -5/Factory | Scrapoid reinforcements arrived 16243 | -5/Factory | Destroyed 7 combat bots 16528 | -5/Factory | Entered Upper Caves 16528 | -5/Upper Caves | Accompanied by 4 allies 16529 | -5/Upper Caves | Identified exit to Upper Caves 16530 | -5/Upper Caves | Attracted the attention of an 0b10 checkpoint 16891 | -5/Upper Caves | Build established: Hauler-Tank 17174 | -5/Upper Caves | Entered another Upper Caves area 17174 | -5/Upper Caves | Accompanied by 1 ally 17175 | -5/Upper Caves | Identified exit to Zhirov 17175 | -5/Upper Caves | Identified exit to Factory 17206 | -5/Upper Caves | Learned location of 1 exit from Factory 17406 | -5/Upper Caves | Spotted B-75 Beast 17413 | -5/Upper Caves | Allies destroyed B-75 Beast 17722 | -5/Upper Caves | Build established: Hauler-Skirmisher 17763 | -5/Upper Caves | Learned location of Warlord (-4) 17856 | -5/Upper Caves | Entered Zhirov 17856 | -5/Zhirov | Accompanied by 1 ally 17862 | -5/Zhirov | Discovered new exit (range 3) 17891 | -5/Zhirov | Met Zhirov 17941 | -5/Zhirov | Learned location of Command (-1) 17955 | -5/Zhirov | Zhirov requested help retrieving the SGEMP Prototype 17980 | -5/Zhirov | Found Alien Artifact 17999 | -5/Zhirov | Found Alien Artifact 17999 | -5/Zhirov | Identified Integrated Dissipator 17999 | -5/Zhirov | Installed Integrated Dissipator, increased core heat dissipation (+20) 18106 | -5/Zhirov | Identified exit to Proximity Caves 18108 | -5/Zhirov | Entered Proximity Caves 18108 | -4/Proximity Caves | Accompanied by 1 ally 18166 | -4/Proximity Caves | Build established: Hauler-Gladiator 18629 | -4/Proximity Caves | Build established: Hauler-Skirmisher 18811 | -4/Proximity Caves | Discovered exit to Factory (range 5) 18868 | -4/Proximity Caves | Entered Factory 18868 | -4/Factory | Evolved 2 slots: Propulsion x1, Utility x1 18869 | -4/Factory | Identified exit to Upper Caves 19011 | -4/Factory | Garrison activated, responded to threat 19245 | -4/Factory | Garrison activated, responded to threat 19280 | -4/Factory | Lost 3 parts (1n2w) 19302 | -4/Factory | Discovered new exit (range 17) 19436 | -4/Factory | Garrison activated, responded to threat 19457 | -4/Factory | Manually triggered Chute Trap 19457 | -4/Factory | Sucked down chute 19457 | -4/Factory | Entered Waste 19458 | -4/Waste | Joined by Warlord forces that had cleared the area 19469 | -4/Waste | Found Adv. Force Booster 19607 | -4/Waste | A Compactor rumbled back to life 19607 | -4/Waste | Spotted C-40 Crusher 19610 | -4/Waste | Allies destroyed C-40 Crusher 19826 | -4/Waste | Found Prototype Reactor 19834 | -4/Waste | Identified Singularity Reactor 19949 | -4/Waste | Discovered new exit (range 16) 20114 | -4/Waste | Build established: Hauler-Gladiator 20368 | -4/Waste | Identified exit to Factory 20707 | -4/Waste | Entered Factory 20707 | -4/Factory | Accompanied by 18 allies 20881 | -4/Factory | Identified exit to Armory 20905 | -4/Factory | P-70 Sage assimilated allied 78-C1P(s) 21106 | -4/Factory | Found Active Sensor Suite 21207 | -4/Factory | First assault squad dispatched 21243 | -4/Factory | Scrapoids reinforcements arrived? 21301 | -4/Factory | Build established: Hauler-Tank 21330 | -4/Factory | Lost 3 allies 21421 | -4/Factory | Core integrity fell below 50% 21457 | -4/Factory | Lost 3 parts (1n2w) 21548 | -4/Factory | Entered Armory 21548 | -4/Armory | Accompanied by 13 allies 21601 | -4/Armory | Lost 4 allies 21939 | -4/Armory | Lost 3 allies 22048 | -4/Armory | First assault squad dispatched 22094 | -4/Armory | Lost 3 allies 22096 | -4/Armory | Discovered new exit (range 15) 22129 | -4/Armory | Identified Transdimensional Reconstructor 22129 | -4/Armory | Warped through subspace to slip node 22129 | -4/Armory | Discovered new exit (range 1) 22151 | -4/Armory | Lost 3 allies 22155 | -4/Armory | Entered Lab 22155 | -4/Lab | Discovered new exit (range 9) 22174 | -4/Lab | Hidden lab's door opened automatically 22174 | -4/Lab | Sensor layout match revealed 22175 | -4/Lab | Gained access to the hidden lab's interior 22244 | -4/Lab | Found Prototype Special Weapon 22246 | -4/Lab | Identified Gui. Remote Datajack 22335 | -4/Lab | Found Alien Artifact 22335 | -4/Lab | Identified Integrated Mediator 22335 | -4/Lab | Installed Integrated Mediator, increased core attachment efficiency 22370 | -4/Lab | Found Transdimensional Reconstructor 22467 | -4/Lab | Found Alien Artifact 22508 | -4/Lab | Found Prototype Protection 22511 | -4/Lab | Identified Hvy. Regenerative Plating 22523 | -4/Lab | Found Prototype Hackware 22536 | -4/Lab | Found Prototype Energy Cannon 22536 | -4/Lab | Identified Warp Cannon 22567 | -4/Lab | Build established: Scavenger-Mutant 22576 | -4/Lab | Identified Deep Network Scanner 22769 | -4/Lab | Entered Research 22769 | -3/Research | Evolved 2 slots: Power x2 22770 | -3/Research | Identified exit to Quarantine 22771 | -3/Research | Identified exit to Research 22969 | -3/Research | Revision forces began assault on 0b10 23011 | -3/Research | Met up with Revision 17++ 23407 | -3/Research | Found Prototype Device 23407 | -3/Research | Identified Exp. ECM Suite 23414 | -3/Research | Found Exp. ECM Suite 23469 | -3/Research | Research terminal network offline 23528 | -3/Research | Scrapoids reinforcements arrived? 23832 | -3/Research | Identified Core Regenerator 23845 | -3/Research | Scrapoid reinforcements arrived 23927 | -3/Research | Lost 4 allies 24005 | -3/Research | Spotted Striker 24013 | -3/Research | Allies destroyed Striker 24067 | -3/Research | Lost 5 allies 24238 | -3/Research | Spotted Executioner 24238 | -3/Research | Spotted Striker 24242 | -3/Research | Attached CPS modules to Executioner 24244 | -3/Research | Attached CPS modules to Striker 24255 | -3/Research | Allies destroyed Striker 24260 | -3/Research | Destroyed Striker 24263 | -3/Research | Destroyed Executioner 24269 | -3/Research | Destroyed Executioner 24289 | -3/Research | Found Prototype Processor 24289 | -3/Research | Identified Exp. Core Analyzer 24292 | -3/Research | Spotted Striker 24293 | -3/Research | Destroyed Striker 24295 | -3/Research | Lost 5 allies 24320 | -3/Research | Destroyed 9 combat bots 24717 | -3/Research | Build established: Hauler-Mutant 25000 | -3/Research | Found Gamma Bomb Array 25044 | -3/Research | Spotted Striker 25048 | -3/Research | Spotted Striker 25049 | -3/Research | Destroyed Striker 25063 | -3/Research | Destroyed Striker 25074 | -3/Research | Spotted Executioner 25077 | -3/Research | Destroyed Executioner 25929 | -3/Research | Spotted Striker 25932 | -3/Research | Entered Quarantine 26146 | -3/Quarantine | Cryocooling Duct disabled 26161 | -3/Quarantine | Ambient heat levels rising (+20) 26161 | -3/Quarantine | Non-combat units ordered to evacuate 26176 | -3/Quarantine | Found Alien Impact Weapon 26198 | -3/Quarantine | Discovered exit to Research (range 13) 26304 | -3/Quarantine | Core integrity fell below 50% 26349 | -3/Quarantine | System corruption reached 10% 26524 | -3/Quarantine | Found Alien Artifact 26626 | -3/Quarantine | Found Alien Reactor 26779 | -3/Quarantine | Lost 6 parts (2p1n1u2w) 26903 | -3/Quarantine | Found Alien Artifact 26977 | -3/Quarantine | Build established: Hauler-Gladiator 27007 | -3/Quarantine | Found Alien Artifact 27085 | -3/Quarantine | Found Alien Slashing Weapon 27234 | -3/Quarantine | Identified Sigix Broadsword 27262 | -3/Quarantine | Found Unknown Launcher 27457 | -3/Quarantine | Entered Research 27457 | -2/Research | Evolved 2 slots: Utility x2 27458 | -2/Research | Identified exit to Testing 27476 | -2/Research | Discovered new exit (range 26) 27577 | -2/Research | Identified Fusion Bomb Launcher 27746 | -2/Research | Garrison activated, responded to threat 27829 | -2/Research | Lost 3 parts (2n1w) 28045 | -2/Research | Identified Core Stripper 28207 | -2/Research | First assault squad dispatched 28230 | -2/Research | Build established: Hauler-Mutant 28456 | -2/Research | Warped through subspace 28463 | -2/Research | Discovered exit to Testing (range 30) 28594 | -2/Research | Found Fusion Bomb Launcher 28598 | -2/Research | Found Fusion Bomb Launcher 28601 | -2/Research | Found Fusion Bomb Launcher 28862 | -2/Research | Entered Testing 28880 | -2/Testing | Found Exp. Core Analyzer 28975 | -2/Testing | Found Prototype Device 29009 | -2/Testing | Identified Exp. Thermal Shield 29059 | -2/Testing | Found Prototype Launcher 29077 | -2/Testing | Identified Ragnarok Missile Launcher 29162 | -2/Testing | Found Prototype Launcher 29163 | -2/Testing | Identified Enh. Gamma Bomb Array 29176 | -2/Testing | System corruption reached 10% 29314 | -2/Testing | Spotted Striker 29314 | -2/Testing | Spotted Striker 29327 | -2/Testing | Spotted Alpha 7 29346 | -2/Testing | Destroyed Striker 29363 | -2/Testing | Destroyed Alpha 7 29370 | -2/Testing | Destroyed Striker 29379 | -2/Testing | Lost 4 parts (2n1u1w) 29398 | -2/Testing | Stole the SGEMP Prototype 29420 | -2/Testing | Found Prototype Processor 29420 | -2/Testing | Identified Exp. Target Analyzer 29554 | -2/Testing | Scanned by Researcher 29612 | -2/Testing | First assault squad dispatched 29632 | -2/Testing | Core integrity fell below 50% 29726 | -2/Testing | Destroyed 22 combat bots 29767 | -2/Testing | Discovered new exit (range 30) 29808 | -2/Testing | Destroyed 7 combat bots 29883 | -2/Testing | Identified exit to Access 29885 | -2/Testing | Entered Access 29885 | -1/Access | Evolved 2 slots: Utility x2 29887 | -1/Access | Loaded intel: 112 machine locations 29887 | -1/Access | Loaded intel: 106 trap records 29887 | -1/Access | Identified exit to Surface 29887 | -1/Access | Discovered exit to Surface (range 138) 29887 | -1/Access | Identified exit to Command 29887 | -1/Access | Discovered exit to Command (range 235) 29887 | -1/Access | Delivered the SGEMP Prototype to Zhirov 29887 | -1/Access | Zhirov transferred Access data 29889 | -1/Access | Identified Matter Drive 30135 | -1/Access | First assault squad dispatched 30147 | -1/Access | Zhirov warped through subspace 30277 | -1/Access | Found Adv. Powered Armor 30282 | -1/Access | Lost 4 parts (2p2n) 30546 | -1/Access | Build established: Scavenger-Mutant 30696 | -1/Access | Scrapoid reinforcements arrived 30741 | -1/Access | Found Scrap Suit 30832 | -1/Access | Lost 5 allies 30889 | -1/Access | Destroyed 10 combat bots 30945 | -1/Access | Lost 15 parts (4p6n5u) 31155 | -1/Access | High security lockdown imminent 31235 | -1/Access | High security lockdown engaged 31259 | -1/Access | Used Core Regenerator, restored core integrity (+400) 31322 | -1/Access | Identified Terrabomb 31322 | -1/Access | Used Terrabomb 31334 | -1/Access | System corruption reached 10% 31337 | -1/Access | Released all parts (9) 31338 | *** | Escaped! Last Messages --------------- 31333_ System corrupted by crushing effect (+5). 31333_ System corrupted by crushing effect (+2). 31333_ System corrupted by crushing effect (+5). 31333_ Knocked back. 31333_ U-05 Engineer builds a Wall. 31333_ Myomer Leg destroyed. 31333_ Penetrated by Slug. 31334_ X6OVBJ|LBG J42WHIU 31337_ Released Myomer Leg. 31337_ U-05 Engineer builds a Wall. 31337_ Penetrated by Slug. Map ----- +----------------------------------------------------+ | #!%* ########################### "" | | [*% ############################# "" | | ############## #### " S | | ############## ####""" "" | | ############## #### """ "" | | ############## " #### " "" | | *############## """ #### | | ############## """ #### | | # ############## " ##########+### | | " ## """T""" # # | | ##"## #### """ """ # + | | # # " # | | + # """ # | | ########## # # """ ######## ## | | ### # + " ######## # | | ### # # ######## # | | ""### #######""""## ######## # | | ""### ## #### #################### # | | [ T"" " # # """ #################### + | | """ " #""""""""""#################### # | | """ " """T"""" """" ### # | | " " """ """" """" ### # | | " " " """""" """" ### # | | ######""" " " " " """" # | | ###### " " " "" " """" # | | ##### " " " @" " """" # | | ##### " "!!"* " """" ## | | #### " "]!"!"""" """" ### ## | | #### " "!/b/== """" ### ## | | #### " "!gl// """" ### ## | | #### " """"""""/!=!!""""""""""""###### # | | #### " " ""; / ###### # | | ####""""""" """"""";;;;""" ###### # | | # " " " """"""####### #" | | # " " " " "###### # | | # " + """""" ####### # | | / " " "" #######^^^^# | | # " " "" ""# + | | # " + "" " # ####### # | | # " " "" " """ ######### ## | | #"" " " """""" "" " "+######### # | | #"" " " """""" "" """"# # # | | #"" " " """""" "" + # # | | #S # " """""" "" #### " # # | | #"" # " """""" "" ####""" + # | | #"" # ###"########### #### """ # # | | #"" # ############### #### " # + | | # # ############### #### # # | | # # ############### #### # # | | ########### ############### ############## # | +----------------------------------------------------+ Best States ------------- Heat Dissipation 72 Energy Generation 65 Energy Capacity 680 Matter Stores 300 Matter Capacity 600 Sight Range 16 Robot Scan Range 16 Terrain Scan Range 30 Terrain Scan Density 2010 Jamming Range 14 EM Shielding 3 Armor Coverage 1000 Resistance: KI 30 Point Defense Rating 240 Melee Speed Boost 20 Evasion (%) 50 Melee Accuracy 16 Core Analysis 8 Armor Integrity Analysis 30 Recoil Reduction 8 Kinecelleration 40 Offensive Hacking 25 Defensive Hacking 24 Authchip Count 4 Item Schematics ----------------- Cargo Storage Unit | -10/Materials | Hacked Huge Storage Unit | -10/Materials | Hacked Heat Sink | -9/Recycling | Hacked Assault Drone Bay | -5/Zhirov | Free Exp. Heat Sink | -5/Zhirov | Free Exp. Optical Array | -5/Zhirov | Free Imp. Arc Thrower | -5/Zhirov | Free Exp. Matter Compressor | -2/Testing | Archive Robot Schematics ------------------ None Fabricated ------------ Imp. Heavy Siege Treads | x1 | -5/Factory | Preloaded Repaired ---------- Nothing Studied --------- None Alien Tech Used ----------------- Integrated Dissipator Transdimensional Reconstructor Integrated Mediator Sigix Broadsword Core Stripper Matter Drive Core Regenerator Terrabomb Achievements -------------- Help And Harvest Challenges ------------ None Game ------ Seed SuperdenseSpikedTelecube Manual? 0 Play Time 04:03:12 Cumulative 589.8 hours Start 2026.09.01 @ 22:13:53 End 2026.09.02 @ 02:58:18 Sessions 1 Manual Loads 0 Difficulty Rogue Special Mode None Game No. 492 Rogue 492 Adventurer 0 Explorer 0 Win Type 0 Total 19 Types 11/0/3/1/0/0/0/2/0/2 Lore% 68 Gallery% 72 Achievement% 69 Wizard Run 0 Options --------- Layout 1 ASCII 0 Keyboard 0 Movement Mouse Keybinds 0 Fullscreen 2 Font 24/Cog Map View 50x35 Zoom Use 13% Tactical HUD 1 Map Filters NONE Filters NONE Steam 1 RUN: 4d67365a-459e-4851-922f-766cca80c31c